Cogmind - Beta 13 @@@ ROGUE MODE // 2024.07.15 @ 18:27:19 Player: celerysam Result: Destroyed by H-66 Slayer with Gauss Rifle Performance ------------- Evolutions (4) 2000 Regions Visited (7) 1400 Robots Destroyed (50) 250 Value Destroyed (1434) 1434 Prototype IDs (9) 180 Alien Tech Used (0) 0 Bonus (403) 403 TOTAL SCORE: 5667 Bonus ------- High Alert Combat Kills 52 Follower Combat Kills 351 Cogmind --------- Core Integrity 0/850 Matter 289/300 Energy 100/100 System Corruption 0% Temperature Cool (0) Movement Core (50) Location -6/Extension Parts ------- > --- POWER (2) -------- (None) > --- PROPULSION (6) --- (None) > --- UTILITY (4) ------ (None) > --- WEAPON (3) ------- (None) > --- INVENTORY (5) ---- Advanced Heat Sink ECM Suite Hacking Suite Peak State ------------ > --- POWER ------------ Cooled Deuterium Engine Neutrino Core > --- PROPULSION ------- Carbon-fiber Leg Carbon-fiber Leg Myomer Leg Myomer Leg Myomer Leg VTOL Module > --- UTILITY ---------- Small Storage Unit Energy Well Reaction Control System Drone Bay > --- WEAPON ----------- Improved EM Pulse Cannon Bore Cannon Improved Datajack > --- INVENTORY -------- Light Angular Momentum Engine Fission Core Cooled VTOL Module Advanced Heat Sink Advanced Weight Redist. System ECM Suite Hacking Suite Shock Rifle [Rating: 69] Favorites ----------- Power Light Nuclear Core Engine Ion Engine Power Core Light Nuclear Core Propulsion Flight Unit Treads Armored Treads Leg Myomer Leg Wheel Wheel Hover Unit Improved Hover Unit Flight Unit Flight Unit Utility Small Storage Unit Device Advanced Weight Redist. System Storage Small Storage Unit Processor Improved Melee Analysis Suite Weapon Assault Rifle Energy Gun Improved Medium Laser Energy Cannon Improved EM Pulse Cannon Ballistic Gun Assault Rifle Ballistic Cannon Bore Cannon Launcher EMP Blaster Slashing Weapon Katana Special Melee Weapon Improved Datajack Build | -11 -10 -9 -8 -7 -7 -6 -6 ------- Run | Yrd Mat Mat Mat Fac Sto Fac Ext Slots Evolved 8 | . . 2 2 2 . 2 . Power 1 | . . . 1 . . . . Propulsion 4 | . . 2 . 2 . . . Utility 2 | . . . 1 . . 1 . Weapon 1 | . . . . . . 1 . Parts Attached 112 | 7 4 30 15 7 24 1 24 Power 17 | 1 . 2 5 . 6 . 3 Engine 10 | 1 . 2 2 . 3 . 2 Core 7 | . . . 3 . 3 . 1 Reactor . | . . . . . . . . Propulsion 48 | 2 3 16 5 5 8 . 9 Treads 7 | . 1 4 . 2 . . . Leg 12 | . 2 1 . . 1 . 8 Wheel 2 | 2 . . . . . . . Hover 5 | . . . . 3 2 . . Flight 22 | . . 11 5 . 5 . 1 Utility 13 | 1 1 3 1 1 2 1 3 Device 8 | . 1 2 1 . 2 . 2 Storage 4 | 1 . 1 . . . 1 1 Processor 1 | . . . . 1 . . . Hackware . | . . . . . . . . Protection . | . . . . . . . . Artifact . | . . . . . . . . Weapon 34 | 3 . 9 4 1 8 . 9 Energy Gun 6 | 1 . 3 . 1 . . 1 Energy Cannon 6 | . . 1 1 . 1 . 3 Ballistic Gun 7 | 2 . 1 1 . 2 . 1 Ballistic Cannon 5 | . . 2 1 . 1 . 1 Launcher 3 | . . 2 . . . . 1 Special Weapon . | . . . . . . . . Impact Weapon . | . . . . . . . . Slashing Weapon 3 | . . . 1 . 2 . . Piercing Weapon . | . . . . . . . . Special Melee Weapon 4 | . . . . . 2 . 2 Unidentified Prototypes 8 | . . 3 . . 4 . 1 Corrupted Parts 1 | . . 1 . . . . . System Corruption 4 | . . 4 . . . . . Parts Lost 45 | . . 3 5 1 14 1 21 Power 9 | . . . 3 . 3 . 3 Propulsion 25 | . . 3 2 1 10 1 8 Utility 3 | . . . . . . . 3 Weapon 8 | . . . . . 1 . 7 Highest Loss Streak 19 | . . 2 4 1 6 1 19 To Critical Strikes . | . . . . . . . . Average Slot Usage (%) 83 | . 90 95 83 99 76 50 75 Engine 6 | . 14 11 6 . 2 . 5 Core 3 | . . . 4 15 5 6 3 Treads 3 | . . 12 . 11 . . . Leg 8 | . 17 1 . . 4 3 21 Wheel 1 | . 10 . . . . . . Hover 2 | . . . . 4 10 . . Flight 16 | . . 29 34 28 16 13 8 Device 7 | . 5 3 6 7 8 13 11 Storage 12 | . 14 18 18 11 7 6 9 Processor 1 | . . . . 3 5 . . Energy Gun 2 | . . 9 . 2 . . . Energy Cannon 1 | . . 1 5 . . . 3 Ballistic Gun 6 | . 28 3 4 4 2 . . Ballistic Cannon 1 | . . 2 . . 1 . 2 Slashing Weapon 2 | . . . 3 7 6 6 . Special Melee Weapon 1 | . . . . . . . 4 Naked Turns 14 | . . . . . . . 14 Heaviest Build 59 | 14 15 22 27 23 26 18 59 Greatest Support 105 | 20 20 60 27 32 37 18 105 Greatest Overweight (x) 5 | 1 . 5 . 1 1 . 2 Average Overweight (x) . | . . . . . . . . Largest Inventory Capacity 8 | 8 8 8 8 8 8 8 8 Average Capacity 7 | 7 8 8 8 8 8 8 7 Most Carried 8 | 8 8 8 8 8 8 8 8 Average Carried 7 | 4 7 7 7 7 7 7 7 Final Capacity 8 | 8 8 8 8 8 8 8 5 Final Carried 8 | 6 8 8 8 7 7 8 3 Class Distribution -------------------- 65% | Mutant 14% | Sprinter 10% | Commander-Mutant 10% | Scavenger-Mutant Dominant Class ---------------- Mutant | -10/Materials Mutant | -9/Materials Sprinter | -8/Materials Mutant | -7/Factory Mutant | -7/Storage Mutant | -6/Factory Commander-Mutant | -6/Extension Resources | -11 -10 -9 -8 -7 -7 -6 -6 ----------- Run | Yrd Mat Mat Mat Fac Sto Fac Ext Matter Collected 1494 | 225 48 249 142 25 396 . 409 Remotely . | . . . . . . . . Salvage Created 1697 | . 86 772 161 93 543 . 42 Parts 109 | . 5 58 8 8 30 . . Haulers Intercepted 2 | . . 2 . . . . . Recyclers Shooed 1 | . . . 1 . . . . Parts Field Recycled . | . . . . . . . . Retrieved Matter . | . . . . . . . . Parts Self-Destructed . | . . . . . . . . Prevented . | . . . . . . . . Kills | -11 -10 -9 -8 -7 -7 -6 -6 ------- Run | Yrd Mat Mat Mat Fac Sto Fac Ext Combat Hostiles Destroyed 44 | . 2 22 6 1 12 . 1 Melee 12 | . . . 4 . 8 . . Guns 16 | . 2 9 . 1 4 . . Cannons 6 | . . 3 2 . . . 1 AOE 10 | . . 10 . . . . . Classes Destroyed 7 | . 1 5 . . 1 . . Hauler 2 | . . 2 . . . . . Recycler 1 | . . 1 . . . . . Operator 3 | . . 1 . 1 1 . . Swarmer 18 | . . 13 4 . 1 . . Grunt 20 | . 2 6 2 . 10 . . Duelist 1 | . . . . . 1 . . Sentry 5 | . . 3 . 1 . . 1 Best Kill Streak 6 | . 2 6 3 2 5 . 1 Combat Bots Only 6 | . 2 6 3 1 5 . 1 Max Kills in Single Turn 4 | . 1 4 1 1 1 . 1 Gunslinging . | . . . . . . . . Exploded 3 | . . 3 . . . . . Melee 1 | . . . 1 . 1 . . Uniques/NPCs Destroyed . | . . . . . . . . Combat | -11 -10 -9 -8 -7 -7 -6 -6 -------- Run | Yrd Mat Mat Mat Fac Sto Fac Ext Hostile Shots Fired 531 | . 22 106 65 55 120 6 157 Missed 176 | . 8 29 16 31 46 2 44 Damage Taken 5330 | . 190 961 532 197 1306 72 2072 Core 1575 | . 28 138 150 37 362 33 827 Absorbed by Shields 24 | . . . . . . . 24 Regen/Repaired (Parts) 43 | . . . 43 . . . . Core Remaining (%) 73 | 100 88 65 72 . 43 . . Volleys Fired 107 | . 11 40 14 4 29 . 9 Largest 2 | . 2 2 1 1 1 . 2 Hottest 126 | . 40 101 68 80 80 . 126 Shots Fired 148 | . 22 63 14 4 29 . 16 Gun 88 | . 22 41 . 4 20 . 1 Cannon 48 | . . 11 14 . 9 . 14 Launcher 12 | . . 11 . . . . 1 Special . | . . . . . . . . Kinetic 66 | . 22 17 . . 20 . 7 Thermal 62 | . . 35 14 4 9 . . Explosive 1 | . . . . . . . 1 Electromagnetic 19 | . . 11 . . . . 8 Robot Hit Streak 17 | . 5 10 3 14 17 . 10 Robot Miss Streak 4 | . 4 4 2 . 1 . 4 Penetration Max 1 | . . . . . . . 1 Secondary Targets . | . . . . . . . . Shots Hit Robots 145 | . 10 40 19 5 42 . 29 Core Hits 86 | . 5 38 6 8 28 . 1 Critical Kills 1 | . . . . . . . 1 Critical Parts Destroyed 2 | . . . . . 1 . 1 Critical Strikes 8 | . . 2 . . 3 . 3 Burn 2 | . . 2 . . . . . Destroy 4 | . . . . . 1 . 3 Sever 2 | . . . . . 2 . . Melee Attacks 63 | . . . 17 2 26 . 18 Impact . | . . . . . . . . Slashing 43 | . . . 17 2 24 . . Piercing . | . . . . . . . . Sneak Attacks 19 | . . . 2 . . . 17 Combat Hostiles 1 | . . . 1 . . . . Follow-up Attacks . | . . . . . . . . Damage Inflicted 3447 | . 155 1121 605 143 1057 . 366 Guns 1134 | . 155 502 . 108 369 . . Cannons 739 | . . 119 205 . 194 . 221 Explosions 625 | . . 500 . . . . 125 Melee 929 | . . . 400 35 494 . . Ramming 20 | . . . . . . . 20 Kinetic 700 | . 155 141 . . 310 . 94 Thermal 1182 | . . 616 205 108 253 . . Explosive 125 | . . . . . . . 125 Electromagnetic 491 | . . 364 . . . . 127 Impact . | . . . . . . . . Slashing 929 | . . . 400 35 494 . . Piercing . | . . . . . . . . Highest Corruption 4 | . . 4 . . . . . Average Corruption 4 | . . 4 . . . . . Corruption Purged . | . . . . . . . . Corruption Blocked . | . . . . . . . . Overload Shots . | . . . . . . . . Overflow Damage 105 | . . . 98 . 7 . . Projectiles . | . . . . . . . . Explosions . | . . . . . . . . Melee 105 | . . . 98 . 7 . . Knockbacks 5 | . . 1 . . 4 . . Impact . | . . . . . . . . Kinetic 4 | . . 1 . . 3 . . Secondary 1 | . . . . . 1 . . Self-Inflicted Damage 21 | . . . . . . . 21 Shots 1 | . . . . . . . 1 Rammed . | . . . . . . . . Targets Rammed 3 | . . . . . . . 3 Kicked 3 | . . . . . . . 3 Crushed . | . . . . . . . . Highest Temperature 448 | . 4 253 448 144 168 . 312 Average Temperature 97 | . 2 81 181 61 44 . 133 Received Heat Transfer 1413 | . 111 258 180 69 543 . 252 Effects 6 | . . 1 3 . . . 2 Shutdowns 1 | . . . 1 . . . . Energy Bleed 1 | . . 1 . . . . . Interference 3 | . . . 1 . . . 2 Damage (minor) 1 | . . . 1 . . . . Siege Activations . | . . . . . . . . Robots Corrupted . | . . . . . . . . Combat Hostiles . | . . . . . . . . Parts Fried . | . . . . . . . . Impact Corruptions . | . . . . . . . . Robots Melted . | . . . . . . . . Combat Hostiles . | . . . . . . . . Parts Melted 6 | . . 4 1 1 . . . Heat Transferred 2629 | . . 1434 370 250 575 . . Parts Sabotaged . | . . . . . . . . Parts Stolen . | . . . . . . . . Parts Stripped . | . . . . . . . . Power Chain Reactions 4 | . . 4 . . . . . Alert | -11 -10 -9 -8 -7 -7 -6 -6 ------- Run | Yrd Mat Mat Mat Fac Sto Fac Ext Peak Influence 727 | . 101 727 428 254 331 188 368 Initial 306 | . . 42 306 194 115 136 84 Average 213 | . 32 341 349 206 223 161 216 Maximum Alert Level 3 | . . 3 2 1 1 . 1 Low Security (%) 56 | 100 100 37 . 64 42 100 57 Level 1 34 | . . 17 93 35 57 . 42 Level 2 8 | . . 44 6 . . . . Level 3 . | . . . . . . . . Level 4 . | . . . . . . . . Level 5 . | . . . . . . . . High Security . | . . . . . . . . Max Security . | . . . . . . . . Squads Dispatched 5 | . . 1 . 2 1 . 1 Investigation 2 | . . . . 1 . . 1 Extermination . | . . . . . . . . Reinforcement 2 | . . 1 . . 1 . . Assault . | . . . . . . . . Garrison 1 | . . . . 1 . . . Intercept . | . . . . . . . . Searches Triggered . | . . . . . . . . Construction Impeded . | . . . . . . . . Haulers Reinforced 1 | . . . . . 1 . . Active Scanning Responses . | . . . . . . . . Cargo Convoy Interrupts . | . . . . . . . . Stealth | -11 -10 -9 -8 -7 -7 -6 -6 --------- Run | Yrd Mat Mat Mat Fac Sto Fac Ext Distress Signals 7 | . 1 1 . 1 1 . 3 Communications Jammed . | . . . . . . . . Distress Signals . | . . . . . . . . Times Spotted 90 | . 5 32 11 5 19 3 15 Peak Tracking Total 8 | . 4 8 5 4 7 3 4 Tactical Retreats 4 | . . 2 . . 2 . . Traps | -11 -10 -9 -8 -7 -7 -6 -6 ------- Run | Yrd Mat Mat Mat Fac Sto Fac Ext Traps Triggered 4 | . . 2 . . 1 . 1 Indirectly 1 | . . 1 . . . . . Trap Hack Attempts . | . . . . . . . . Triggered . | . . . . . . . . Disarmed . | . . . . . . . . Reprogrammed 3 | . . . . . 3 . . Reused . | . . . . . . . . Traps Extracted . | . . . . . . . . Installed . | . . . . . . . . Triggered . | . . . . . . . . Machines | -11 -10 -9 -8 -7 -7 -6 -6 ---------- Run | Yrd Mat Mat Mat Fac Sto Fac Ext Machines Disabled 1 | . . 1 . . . . . Max in Single Turn 1 | . . 1 . . . . . Machines Repaired . | . . . . . . . . Machines Dismantled . | . . . . . . . . Machines Sabotaged . | . . . . . . . . Overloaded Fab Kills . | . . . . . . . . Hacking | -11 -10 -9 -8 -7 -7 -6 -6 --------- Run | Yrd Mat Mat Mat Fac Sto Fac Ext Machines Accessed 19 | . 3 1 3 2 4 3 3 Terminals 15 | . 3 1 2 2 4 1 2 Fabricators 1 | . . . . . . 1 . Repair Stations 1 | . . . 1 . . . . Recycling Units 2 | . . . . . . 1 1 Scanalyzers . | . . . . . . . . Garrison Access . | . . . . . . . . Total Hacks 38 | . 4 2 8 4 7 7 6 Successful 24 | . 3 1 7 3 4 3 3 Failed 14 | . 1 1 1 1 3 4 3 Catastrophic 3 | . . . . 1 . 1 1 Database Lockouts . | . . . . . . . . Manual 11 | . 3 1 1 1 . 2 3 Terminals 31 | . 4 2 6 4 7 3 5 Fabricators 2 | . . . . . . 2 . Repair Stations 2 | . . . 2 . . . . Recycling Units 3 | . . . . . . 2 1 Scanalyzers . | . . . . . . . . Garrison Access . | . . . . . . . . Terminal Hacks 15 | . 1 1 4 2 4 2 1 Record 6 | . 1 . 3 1 . 1 . Prototype ID Bank 1 | . . . 1 . . . . Open Door 4 | . . . . . 3 . 1 Alert Level 1 | . . 1 . . . . . Locate Traps 2 | . . . . 1 . 1 . Reprogram Traps 1 | . . . . . 1 . . Fabricator Hacks . | . . . . . . . . Repair Station Hacks 2 | . . . 2 . . . . Scan Component 1 | . . . 1 . . . . Repair 1 | . . . 1 . . . . Recycling Unit Hacks 1 | . . . . . . . 1 Report Inventory 1 | . . . . . . . 1 Scanalyzer . | . . . . . . . . Garrison Access Hacks . | . . . . . . . . Unauthorized Hacks 6 | . 2 . 1 1 . 1 1 Terminals 5 | . 2 . 1 1 . . 1 Assimilate 5 | . 2 . 1 1 . . 1 Fabricators 1 | . . . . . . 1 . Liberate 1 | . . . . . . 1 . Repair Stations . | . . . . . . . . Recycling Units . | . . . . . . . . Scanalyzers . | . . . . . . . . Garrison Access . | . . . . . . . . Data Cores Recovered 3 | . . 1 . 1 1 . . Used 1 | . . . . 1 . . . Hacking Detections 7 | . . . 1 1 1 2 2 Full Trace Events 2 | . . . . 1 . . 1 Feedback Events . | . . . . . . . . Feedback Blocked . | . . . . . . . . Robot Schematics Acquired . | . . . . . . . . Robots Built . | . . . . . . . . Authchips . | . . . . . . . . Time . | . . . . . . . . Total Robot Build Rating . | . . . . . . . . Part Schematics Acquired . | . . . . . . . . Parts Built . | . . . . . . . . Authchips . | . . . . . . . . Time . | . . . . . . . . Total Part Build Rating . | . . . . . . . . Parts Repaired 1 | . . . 1 . . . . Time 38 | . . . 38 . . . . Parts Recycled . | . . . . . . . . Recycled Matter . | . . . . . . . . Retrieved Matter . | . . . . . . . . Retrieved Components . | . . . . . . . . Parts Scanalyzed . | . . . . . . . . Part Schematics Acquired . | . . . . . . . . Parts Damaged . | . . . . . . . . Bothacking | -11 -10 -9 -8 -7 -7 -6 -6 ------------ Run | Yrd Mat Mat Mat Fac Sto Fac Ext Used RIF Installer . | . . . . . . . . Robots Hacked 2 | . . . . . 1 . 1 Non-combat . | . . . . . . . . Combat 2 | . . . . . 1 . 1 Robot Hacks Applied 2 | . . . . . 1 . 1 parse_system 2 | . . . . . 1 . 1 Relay Couplers Released . | . . . . . . . . Fabnet Peak Effective % . | . . . . . . . . Robots Rewired 8 | . . . . . . . 8 Allies Hacked . | . . . . . . . . Hacks Repelled . | . . . . . . . . Allies | -11 -10 -9 -8 -7 -7 -6 -6 -------- Run | Yrd Mat Mat Mat Fac Sto Fac Ext Total Allies 10 | . . . 1 . . . 9 Largest Group 8 | . . . 1 1 . . 8 Highest-Rated Group 249 | . . . 10 10 . . 249 Highest-Rated Ally 39 | . . . 10 10 . . 39 Total Orders . | . . . . . . . . Ally Attacks 49 | . . . . . . . 49 Total Damage 934 | . . . . . . . 934 Kills 11 | . . . . . . . 11 Allies Corrupted . | . . . . . . . . Allies Melted . | . . . . . . . . Intel | -11 -10 -9 -8 -7 -7 -6 -6 ------- Run | Yrd Mat Mat Mat Fac Sto Fac Ext Robot Analysis Total . | . . . . . . . . Derelict Logs Recovered . | . . . . . . . . Drone Launches 16 | . . . . . 16 . . Drone Recoveries 2 | . . . . . . 2 . Exploration | -11 -10 -9 -8 -7 -7 -6 -6 ------------- Run | Yrd Mat Mat Mat Fac Sto Fac Ext Turns Passed 1875 | 51 314 324 212 167 297 107 403 Spaces Moved 1865 | 44 267 299 237 208 277 251 282 Core 20 | 14 . . . . . . 6 Treads 26 | . . 26 . . . . . Legs 350 | . 123 10 . . 8 . 209 Wheels 174 | 30 144 . . . . . . Hover 65 | . . . . 40 25 . . Flight 1230 | . . 263 237 168 244 251 67 Fastest Speed 31 | 50 80 31 31 31 34 32 32 Average Speed 62 | 74 98 53 31 66 42 38 99 Slowest Speed 460 | 100 120 460 34 120 120 42 190 Overloaded Moves . | . . . . . . . . Propulsion Burnouts . | . . . . . . . . Robots Hopped 2 | . . . . 1 . . 1 Cave-ins Triggered . | . . . . . . . . Exploration Rate (%) 27 | 4 49 37 20 8 47 9 43 Regions Visited 7 Branch Regions 2 Pre-discovered Areas . | . . . . . . . . Known Exits Taken . | . . . . . . . . Unknown Exits Taken 7 | 1 1 1 1 1 1 1 . Scrap Searched . | . . . . . . . . Spaces Dug . | . . . . . . . . Terrain Destroyed 19 | . . 13 . . 1 . 5 Melee . | . . . . . . . . Projectile 3 | . . . . . 1 . 2 AOE 16 | . . 13 . . . . 3 Terrain Rammed . | . . . . . . . . Walls Destroyed . | . . . . . . . . Machines Disabled . | . . . . . . . . Actions | -11 -10 -9 -8 -7 -7 -6 -6 --------- Run | Yrd Mat Mat Mat Fac Sto Fac Ext Total 2349 | 60 298 401 332 227 387 261 383 Wait 86 | . . . 38 . 7 8 33 Move 1855 | 43 266 299 236 205 276 250 280 Hop 2 | . . . . 1 . . 1 Pick Up 56 | 10 10 13 6 3 7 1 6 Fast Attach 41 | 2 . 5 7 4 13 . 10 Attach 39 | 4 1 10 4 3 5 1 11 Detach 7 | . . 4 1 . . 1 1 Swap 33 | 1 3 15 4 . 6 . 4 Drop 49 | . 7 15 5 5 11 . 6 Fire 107 | . 11 40 14 4 29 . 9 Melee 63 | . . . 17 2 26 . 18 Ram . | . . . . . . . . Kick 3 | . . . . . . . 3 Crush . | . . . . . . . . Escape Stasis 1 | . . . . . . . 1 Rewire . | . . . . . . . . Trap . | . . . . . . . . Miscellaneous 7 | . . . . . 7 . . Route ------- -11/Scrapyard -10/Materials -9/Materials -8/Materials -7/Factory -7/Storage -6/Factory -6/Extension History --------- Turn | Location | Event 2 | -11/Scrapyard | Met Revision 17 12 | -11/Scrapyard | Discovered new exit (range 15) 52 | -11/Scrapyard | Entered Materials 303 | -10/Materials | Build established: Mutant 356 | -10/Materials | Discovered new exit (range 8) 366 | -10/Materials | Entered another Materials area 366 | -9/Materials | Evolved 2 slots: Propulsion x2 680 | -9/Materials | Discovered new exit (range 4) 690 | -9/Materials | Entered another Materials area 690 | -8/Materials | Evolved 2 slots: Power x1, Utility x1 785 | -8/Materials | Repaired Lgt. Deuterium Engine 889 | -8/Materials | Discovered new exit (range 16) 902 | -8/Materials | Entered Factory 902 | -7/Factory | Accompanied by 1 ally 902 | -7/Factory | Evolved 2 slots: Propulsion x2 905 | -7/Factory | Lost 4 parts (2p2n) 1021 | -7/Factory | Garrison activated, responded to threat 1057 | -7/Factory | Discovered new exit (range 14) 1069 | -7/Factory | Entered Storage 1223 | -7/Storage | Lost 6 parts (2p3n1w) 1264 | -7/Storage | Core integrity fell below 50% 1302 | -7/Storage | Lost 4 parts (4n) 1323 | -7/Storage | Discovered new exit (range 5) 1366 | -7/Storage | Entered Factory 1366 | -6/Factory | Accompanied by 11 allies 1366 | -6/Factory | Evolved 2 slots: Utility x1, Weapon x1 1395 | -6/Factory | Lost 3 allies 1447 | -6/Factory | Discovered new exit (range 15) 1473 | -6/Factory | Entered Extension 1473 | -6/Extension | Accompanied by 7 allies 1660 | -6/Extension | Rescued a captive Derelict 1812 | -6/Extension | Spotted B-75 Beast 1821 | -6/Extension | Lost 5 allies 1831 | -6/Extension | Spotted B-75 Beast 1864 | -6/Extension | Core integrity fell below 50% 1871 | -6/Extension | Core integrity fell below 20% 1876 | -6/Extension | Destroyed by H-66 Slayer with Gauss Rifle Last Messages --------------- 01859_ U-05 Engineer lays Concrete. 01860_ Adv. Weight Redist. System destroyed. 01860_ U-05 Engineer lays Concrete. 01862_ Cld. VTOL Module destroyed. 01862_ Lgt. Angular Momentum Engine destroyed. 01862_ Critical hit (Blast). 01862_ Shock Rifle destroyed. 01863_ Penetrated by Slug. 01863_ U-05 Engineer lays Concrete. 01863_ Acquired 8 matter. 01864_ U-05 Engineer lays Concrete. 01864_ R-10 Processor collects Energy Well. 01865_ U-05 Engineer lays Concrete. 01866_ Penetrated by Slug. 01867_ U-05 Engineer lays Concrete. 01870_ R-10 Processor collects Sml. Storage Unit. 01871_ U-05 Engineer lays Concrete. 01872_ Penetrated by Slug. 01873_ U-05 Engineer lays Concrete. 01876_ Penetrated by Slug. Map ----- +----------------------------------------------------+ | ????????????########%#???????????????????????????? | | ????????????????####%#???????????????????????????? | | ???????????????????#%##??????????????????????????? | | ?????????????????#T# #???????????????????????????? | | ?????????????????"!+%#???????????????????????????? | | ?????????????????# #!#???????????????????????????? | | ???????????????????#%#???????????????????????????? | | ???????????????????# #???????????????????????????? | | ???????????????????# #???????????????????????????? | | ???????????????????#%#?###?##?? ?????????????????? | | ?????????????????### ### ## ### #????????????????? | | ?????????????????# "%" "" ""#??????????????? | | ?????????????????# " " " " #??????????????? | | ?????????????????# u #??????????????? | | ?????????????????# #??????????????? | | ?################# ########???????? | | ????????? | | R ????????? | | ?????????? | | ???????????? | | R BBh ?????????????? | | ?################# BBBB #??????????????? | | ????????????????# BB u #??????????????? | | ????????????????# #??????????????? | | ????????????????## #??????????????? | | ????????????????# @ % #??????????????? | | ????????????????### ##; #"""#;##;##??????????????? | | ?????????????????????####????# ??#???????????????? | | ??????????????????????????????##?????????????????? | | | | | | | | | | | | | | | | | | | | | | | | | | | | | | | | | | | | | | | | | | | +----------------------------------------------------+ Best States ------------- Heat Dissipation 38 Energy Generation 32 Energy Capacity 875 Matter Stores 300 Matter Capacity 300 Sight Range 16 Terrain Scan Density 10 Additional Mass Support 9 Evasion (%) 63 Melee Accuracy 6 Recoil Reduction 3 Item Schematics ----------------- None Robot Schematics ------------------ None Fabricated ------------ Nothing Alien Tech Used ----------------- None Achievements -------------- None Challenges ------------ None Game ------ Seed SurgeCoreMonowheel Manual? 0 Play Time 00:46:03 Cumulative 102.5 hours Start 2024.07.15 @ 17:37:03 End 2024.07.15 @ 18:27:19 Sessions 1 Manual Loads 0 Difficulty Rogue Special Mode None Game No. 147 Rogue 147 Adventurer 0 Explorer 0 Win Type - Total 0 Types 0/0/0/0/0/0/0/0/0 Lore% 44 Gallery% 57 Achievement% 36 Wizard Run 0 Options --------- Layout 0 ASCII 0 Keyboard 0 Movement Mouse Keybinds 0 Fullscreen 1 Font 24/Smallcaps Map View 76x50 Zoom Use 0% Tactical HUD 1 Map Filters NONE Filters NONE Steam 1 RUN: c4d9a732-e2f3-4c63-ad54-06c50484e947